Workbook

Sheet Linear
A2: Slope | B2: 2 | D2: Initial X | E2: =Settings!B2+Settings!B5*Settings!B4 -> 2.8
A3: Y_int | B3: 1 | D3: Delta X | E3: =Settings!B6+Settings!B9*Settings!B8 -> 1.725
A6: X1 | B6: Y1 | D6: X2 | E6: Y2
A7: 0 | B7: =$B$3+$B$2*A7 -> 1 | D7: =E2 -> 2.8 | E7: =$B$3+$B$2*D7 -> 6.6
A8: 1 | B8: =$B$3+$B$2*A8 -> 3 | D8: =D7+$E$3 -> 4.525 | E8: =E7 -> 6.6
A9: 2 | B9: 5 | D9: =D8 -> 4.525 | E9: =$B$3+$B$2*D9 -> 10.05
A10: 3 | B10: 7 | D10: =D9+$E$3 -> 6.25 | E10: =E9 -> 10.05
A11: 4 | B11: 9 | D11: =D10 -> 6.25 | E11: =$B$3+$B$2*D11 -> 13.5
A12: 5 | B12: 11 | D12: =D11+$E$3 -> 7.975 | E12: =E11 -> 13.5
A13: 6 | B13: 13 | D13: =D12 -> 7.975 | E13: =$B$3+$B$2*D13 -> 16.95
A14: 7 | B14: 15
A15: 8 | B15: 17
A16: 9 | B16: 19 | D16: X3 | E16: Y3
A17: 10 | B17: 21 | D17: =A7 -> 0 | E17: =3*(B3+B2*(E2+E3))-2*(B3+B2*E2) -> 16.95
A18: 11 | B18: 23 | D18: =A27 -> 20 | E18: =E17 -> 16.95
A19: 12 | B19: 25
A20: 13 | B20: 27 | D20: X4 | E20: Y4
A21: 14 | B21: 29 | D21: =D17 -> 0 | E21: =2*(B3+B2*(E2+E3))-(B3+B2*E2) -> 13.5
A22: 15 | B22: 31 | D22: =D18 -> 20 | E22: =E21 -> 13.5
A23: 16 | B23: 33
A24: 17 | B24: 35 | D24: X5 | E24: Y5
A25: 18 | B25: 37 | D25: =D21 -> 0 | E25: =B3+B2*(E2+E3) -> 10.05
A26: 19 | B26: 39 | D26: =D22 -> 20 | E26: =E25 -> 10.05
A27: 20 | B27: 41

Sheet Nonlinear
A2: a | B2: 0.5 | D2: Initial X | E2: =Settings!C2+Settings!C5*Settings!C4 -> 0.55
A3: b | B3: 1 | D3: Delta X | E3: =Settings!C6+Settings!C9*Settings!C8 -> 1
A6: X1 | B6: Y1 | D6: X2 | E6: Y2
A7: 0 | B7: =$B$2*EXP(A7)+$B$3 -> 1.5 | D7: =E2 -> 0.55 | E7: =$B$2*EXP(D7)+$B$3 -> 1.866626509
A8: 0.25 | B8: =$B$2*EXP(A8)+$B$3 -> 1.642012708 | D8: =D7+$E$3 -> 1.55 | E8: =E7 -> 1.866626509
A9: 0.5 | B9: 1.824360635 | D9: =D8 -> 1.55 | E9: =$B$2*EXP(D9)+$B$3 -> 3.355735091
A10: 0.75 | B10: 2.058500008 | D10: =D9+$E$3 -> 2.55 | E10: =E9 -> 3.355735091
A11: 1 | B11: 2.359140914 | D11: =D10 -> 2.55 | E11: =$B$2*EXP(D11)+$B$3 -> 7.403551891
A12: 1.25 | B12: 2.745171479 | D12: =D11+$E$3 -> 3.55 | E12: =E11 -> 7.403551891
A13: 1.5 | B13: 3.240844535 | D13: =D12 -> 3.55 | E13: =$B$2*EXP(D13)+$B$3 -> 18.40665874
A14: 1.75 | B14: 3.877301338
A15: 2 | B15: 4.694528049
A16: 2.25 | B16: 5.743867918 | D16: X3 | E16: Y3
A17: 2.5 | B17: 7.09124698 | D17: =A7 -> 0 | E17: =3*(B2*EXP(E2+E3)+B3)-2*(B2*EXP(E2)+B3) -> 6.333952256
A18: 2.75 | B18: 8.821315942 | D18: =A27 -> 5 | E18: =E17 -> 6.333952256
A19: 3 | B19: 11.04276846
A20: 3.25 | B20: 13.89516996 | D20: X4 | E20: Y4
A21: 3.5 | B21: 17.55772598 | D21: =D17 -> 0 | E21: =2*(B2*EXP(E2+E3)+B3)-(B2*EXP(E2)+B3) -> 4.844843674
A22: 3.75 | B22: 22.260541 | D22: =D18 -> 5 | E22: =E21 -> 4.844843674
A23: 4 | B23: 28.29907502
A24: 4.25 | B24: 36.05270617 | D24: X5 | E24: Y5
A25: 4.5 | B25: 46.00856565 | D25: =D21 -> 0 | E25: =B2*EXP(E2+E3)+B3 -> 3.355735091
A26: 4.75 | B26: 58.79214226 | D26: =D22 -> 5 | E26: =E25 -> 3.355735091
A27: 5 | B27: 75.20657955

Sheet Settings
B1: Linear | C1: Nonlinear
A2: X_init_Min | B2: =Linear!$A$7 -> 0 | C2: =Nonlinear!A7 -> 0
A3: X_init_Max | B3: =TRUNC(Linear!$A$27-3*Linear!$E$3) -> 14 | C3: =TRUNC(Nonlinear!A27-3*Nonlinear!E3) -> 2
A4: X_init_Read | B4: 40 | C4: 55
A5: X_Init_Steps | B5: =(B3-B2)/200 -> 0.07 | C5: =(C3-C2)/200 -> 0.01
A6: Del_X_Min | B6: 0 | C6: 0
A7: Del_X_Max | B7: 5 | C7: 1
A8: Del_X_Read | B8: 69 | C8: 200
A9: Del_X_Steps | B9: =(B7-B6)/200 -> 0.025 | C9: =(C7-C6)/200 -> 0.005
